[Event "new tournament description"]
[Site "France"]
[Date "2018.12.28"]
[Round "3.2"]
[White "LAFOND"]
[Black "GULIYEV"]
[Result "0-1"]
[TimeControl "15min+3sec"]
[WhiteElo "1970"]
[BlackElo "2563"]

1. e4 {[%clk 00:15:04]} {[%emt 00:00:01]} c5 {[%clk 00:15:05]} {[%emt
00:00:01]} 2. Nf3 {[%clk 00:15:05]} {[%emt 00:00:02]} d6 {[%clk 00:15:07]}
{[%emt 00:00:01]} 3. d4 {[%clk 00:15:06]} {[%emt 00:00:02]} cxd4 {[%clk
00:15:08]} {[%emt 00:00:02]} 4. Nxd4 {[%clk 00:15:07]} {[%emt 00:00:02]} Nf6
{[%clk 00:15:10]} {[%emt 00:00:01]} 5. Nc3 {[%clk 00:15:09]} {[%emt 00:00:02]}
a6 {[%clk 00:15:12]} {[%emt 00:00:01]} 6. Be2 {[%clk 00:15:02]} {[%emt
00:00:09]} e6 {[%clk 00:15:13]} {[%emt 00:00:02]} 7. a4 {[%clk 00:14:27]}
{[%emt 00:00:38]} b6 {[%clk 00:15:13]} {[%emt 00:00:03]} 8. f4 {[%clk
00:14:17]} {[%emt 00:00:13]} Bb7 {[%clk 00:15:14]} {[%emt 00:00:02]} 9. Bf3
{[%clk 00:14:17]} {[%emt 00:00:02]} Qc7 {[%clk 00:15:02]} {[%emt 00:00:16]} 10.
O-O {[%clk 00:14:06]} {[%emt 00:00:14]} Be7 {[%clk 00:15:03]} {[%emt 00:00:02]}
11. Kh1 {[%clk 00:13:51]} {[%emt 00:00:17]} Nc6 {[%clk 00:14:48]} {[%emt
00:00:18]} 12. Nb3 {[%clk 00:12:49]} {[%emt 00:01:06]} O-O {[%clk 00:14:22]}
{[%emt 00:00:29]} 13. g4 {[%clk 00:11:50]} {[%emt 00:01:01]} Nd7 {[%clk
00:14:14]} {[%emt 00:00:11]} 14. g5 {[%clk 00:11:27]} {[%emt 00:00:25]} Rfe8
{[%clk 00:14:12]} {[%emt 00:00:06]} 15. Qe1 {[%clk 00:10:22]} {[%emt 00:01:08]}
Bf8 {[%clk 00:14:11]} {[%emt 00:00:05]} 16. Qh4 {[%clk 00:09:55]} {[%emt
00:00:29]} Nc5 {[%clk 00:13:49]} {[%emt 00:00:26]} 17. Be3 {[%clk 00:08:45]}
{[%emt 00:01:13]} g6 {[%clk 00:13:16]} {[%emt 00:00:36]} 18. Rae1 {[%clk
00:08:01]} {[%emt 00:00:47]} Nb4 {[%clk 00:11:55]} {[%emt 00:01:25]} 19. Re2
{[%clk 00:06:28]} {[%emt 00:01:36]} Rac8 {[%clk 00:09:27]} {[%emt 00:02:30]} 20.
Bd4 {[%clk 00:05:42]} {[%emt 00:00:49]} Nxb3 {[%clk 00:09:10]} {[%emt
00:00:21]} 21. cxb3 {[%clk 00:05:39]} {[%emt 00:00:07]} e5 {[%clk 00:09:12]}
{[%emt 00:00:01]} 22. fxe5 {[%clk 00:05:15]} {[%emt 00:00:26]} dxe5 {[%clk
00:09:12]} {[%emt 00:00:03]} 23. Be3 {[%clk 00:05:05]} {[%emt 00:00:13]} Nd3
{[%clk 00:08:55]} {[%emt 00:00:20]} 24. Nd5 {[%clk 00:04:48]} {[%emt 00:00:19]}
Bxd5 {[%clk 00:08:52]} {[%emt 00:00:07]} 25. exd5 {[%clk 00:04:50]} {[%emt
00:00:02]} Nf4 {[%clk 00:08:39]} {[%emt 00:00:15]} 26. Ref2 {[%clk 00:04:25]}
{[%emt 00:00:27]} Bc5 {[%clk 00:08:26]} {[%emt 00:00:16]} 27. Bxc5 {[%clk
00:03:38]} {[%emt 00:00:50]} Qxc5 {[%clk 00:08:23]} {[%emt 00:00:06]} 28. Be4
{[%clk 00:03:32]} {[%emt 00:00:09]} Qd4 {[%clk 00:08:14]} {[%emt 00:00:11]} 29.
Rxf4 {[%clk 00:02:42]} {[%emt 00:00:54]} exf4 {[%clk 00:08:13]} {[%emt
00:00:04]} 30. Rxf4 {[%clk 00:02:43]} {[%emt 00:00:02]} Rc1+ {[%clk 00:07:44]}
{[%emt 00:00:31]} 31. Kg2 {[%clk 00:02:45]} {[%emt 00:00:02]} Rg1+ {[%clk
00:07:33]} {[%emt 00:00:14]} 32. Kh3 {[%clk 00:02:38]} {[%emt 00:00:10]} Rxe4
{[%clk 00:07:27]} {[%emt 00:00:08]} 0-1

[ePGN "0.1;DGT LiveChess/2.2.3"]

[Event "new tournament description"]
[Site "France"]
[Date "2018.12.28"]
[Round "4.1"]
[White "MOINGT A"]
[Black "GOZZOLI"]
[Result "0-1"]
[TimeControl "15min+3sec"]
[WhiteElo "2151"]
[BlackElo "2582"]

1. e4 {[%clk 00:15:06]} {[%emt 00:15:25]} e5 {[%clk 00:14:47]} {[%emt
00:00:19]} 2. Nf3 {[%clk 00:15:08]} {[%emt 00:00:01]} Nc6 {[%emt 00:00:01]} 3.
Bb5 a6 4. Ba4 Nf6 {[%clk 00:14:53]} {[%emt 00:00:01]} 5. O-O {[%clk 00:15:14]}
{[%emt 00:00:02]} Be7 {[%clk 00:14:55]} 6. Re1 {[%clk 00:15:07]} {[%emt
00:00:11]} b5 {[%clk 00:14:56]} {[%emt 00:00:01]} 7. Bb3 {[%clk 00:15:10]} O-O
{[%clk 00:14:57]} {[%emt 00:00:03]} 8. a4 {[%clk 00:14:47]} {[%emt 00:00:27]}
b4 {[%clk 00:14:55]} {[%emt 00:00:05]} 9. d3 {[%clk 00:14:14]} {[%emt
00:00:36]} d6 {[%clk 00:14:50]} {[%emt 00:00:07]} 10. a5 {[%clk 00:13:15]}
{[%emt 00:01:02]} Be6 {[%clk 00:14:36]} {[%emt 00:00:16]} 11. Nbd2 {[%clk
00:13:01]} {[%emt 00:00:17]} h6 {[%clk 00:14:26]} {[%emt 00:00:13]} 12. Nc4
{[%clk 00:12:27]} {[%emt 00:00:38]} Rb8 {[%clk 00:14:28]} 13. Bd2 {[%clk
00:11:42]} {[%emt 00:00:48]} Nd7 {[%clk 00:13:17]} {[%emt 00:01:14]} 14. c3
{[%clk 00:10:44]} {[%emt 00:01:02]} Nc5 {[%clk 00:13:11]} {[%emt 00:00:09]} 15.
Bc2 {[%clk 00:10:38]} {[%emt 00:00:09]} Rb5 {[%clk 00:08:01]} {[%emt 00:05:12]}
16. Ne3 {[%clk 00:06:57]} {[%emt 00:03:44]} bxc3 {[%clk 00:07:59]} {[%emt
00:00:06]} 17. Bxc3 {[%clk 00:06:29]} {[%emt 00:00:31]} Nb3 {[%clk 00:07:07]}
{[%emt 00:00:55]} 18. Rb1 {[%clk 00:05:26]} {[%emt 00:01:06]} Ncd4 {[%clk
00:05:52]} {[%emt 00:01:18]} 19. Nd5 {[%clk 00:04:44]} {[%emt 00:00:45]} Nxc2
{[%clk 00:05:50]} {[%emt 00:00:04]} 20. Nxe7+ {[%clk 00:04:20]} {[%emt
00:00:27]} Qxe7 {[%clk 00:05:52]} {[%emt 00:00:01]} 21. Qxc2 {[%clk 00:04:22]}
{[%emt 00:00:02]} c5 {[%clk 00:05:06]} {[%emt 00:00:49]} 22. Nd2 {[%clk
00:03:32]} {[%emt 00:00:53]} Nd4 {[%clk 00:05:08]} {[%emt 00:00:01]} 23. Qd1
{[%clk 00:03:23]} {[%emt 00:00:12]} Rfb8 {[%clk 00:04:46]} {[%emt 00:00:25]} 24.
Nc4 {[%clk 00:02:54]} {[%emt 00:00:32]} Bxc4 {[%clk 00:04:46]} {[%emt
00:00:03]} 25. dxc4 {[%clk 00:02:56]} {[%emt 00:00:01]} Rb3 {[%clk 00:04:48]}
26. f4 {[%clk 00:02:39]} {[%emt 00:00:21]} Qe6 {[%clk 00:04:39]} {[%emt
00:00:12]} 27. f5 {[%clk 00:01:47]} {[%emt 00:00:55]} Qxc4 {[%clk 00:04:02]}
{[%emt 00:00:40]} 28. f6 {[%clk 00:01:43]} {[%emt 00:00:07]} g6 {[%clk
00:04:02]} {[%emt 00:00:03]} 29. Qg4 {[%clk 00:01:32]} {[%emt 00:00:14]} Kh7
{[%clk 00:03:25]} {[%emt 00:00:40]} 30. Qd7 {[%clk 00:01:25]} {[%emt 00:00:10]}
Qe6 {[%clk 00:03:25]} {[%emt 00:00:03]} 31. Qa7 {[%clk 00:01:20]} {[%emt
00:00:09]} R8b7 {[%clk 00:03:22]} {[%emt 00:00:06]} 32. Qxa6 {[%clk 00:01:12]}
{[%emt 00:00:10]} Qxf6 {[%clk 00:03:24]} 33. Rf1 {[%clk 00:01:09]} {[%emt
00:00:07]} Qe6 {[%clk 00:03:25]} {[%emt 00:00:02]} 34. Rbd1 {[%clk 00:00:56]}
{[%emt 00:00:16]} Kg7 {[%clk 00:03:26]} {[%emt 00:00:02]} 35. Rf2 {[%clk
00:00:53]} {[%emt 00:00:06]} d5 {[%clk 00:03:08]} {[%emt 00:00:21]} 36. exd5
{[%clk 00:00:51]} {[%emt 00:00:05]} Qxa6 {[%clk 00:03:09]} {[%emt 00:00:01]}
0-1

[Event "new tournament description"]
[Site "France"]
[Date "2018.12.28"]
[Round "4.2"]
[White "GULIYEV"]
[Black "BRIET"]
[Result "1-0"]
[TimeControl "15min+3sec"]
[WhiteElo "2563"]
[BlackElo "2261"]

1. e4 {[%clk 00:15:03]} {[%emt 00:00:02]} c5 {[%clk 00:14:55]} {[%emt
00:00:11]} 2. Nf3 {[%clk 00:15:03]} {[%emt 00:00:03]} e6 {[%clk 00:14:53]}
{[%emt 00:00:05]} 3. d4 {[%clk 00:15:04]} {[%emt 00:00:02]} cxd4 {[%clk
00:14:55]} {[%emt 00:00:02]} 4. Nxd4 {[%clk 00:15:05]} {[%emt 00:00:02]} a6
{[%clk 00:14:55]} {[%emt 00:00:02]} 5. Bd3 {[%clk 00:15:05]} {[%emt 00:00:04]}
Bc5 {[%clk 00:14:56]} {[%emt 00:00:02]} 6. Nb3 {[%clk 00:15:06]} {[%emt
00:00:02]} Be7 {[%clk 00:14:58]} {[%emt 00:00:02]} 7. c4 {[%clk 00:14:24]}
{[%emt 00:00:45]} d6 {[%clk 00:14:54]} {[%emt 00:00:07]} 8. Nc3 {[%clk
00:14:26]} {[%emt 00:00:02]} Nf6 {[%clk 00:14:33]} {[%emt 00:00:23]} 9. O-O
{[%clk 00:14:26]} {[%emt 00:00:03]} O-O {[%clk 00:13:36]} {[%emt 00:01:00]} 10.
Be3 {[%clk 00:14:27]} {[%emt 00:00:02]} Nbd7 {[%clk 00:13:10]} {[%emt
00:00:29]} 11. Nd4 {[%clk 00:14:20]} {[%emt 00:00:10]} Qc7 {[%clk 00:13:09]}
{[%emt 00:00:04]} 12. Rc1 {[%clk 00:14:21]} {[%emt 00:00:02]} b6 {[%clk
00:13:03]} {[%emt 00:00:09]} 13. f4 {[%clk 00:13:53]} {[%emt 00:00:31]} Re8
{[%clk 00:12:58]} {[%emt 00:00:07]} 14. Qf3 {[%clk 00:13:36]} {[%emt 00:00:21]}
Bb7 {[%clk 00:12:56]} {[%emt 00:00:05]} 15. Kh1 {[%clk 00:13:36]} {[%emt
00:00:03]} Bf8 {[%clk 00:12:40]} {[%emt 00:00:18]} 16. b3 {[%clk 00:13:17]}
{[%emt 00:00:23]} e5 {[%clk 00:12:15]} {[%emt 00:00:27]} 17. Nd5 {[%clk
00:12:59]} {[%emt 00:00:22]} Qd8 {[%clk 00:11:50]} {[%emt 00:00:28]} 18. fxe5
{[%clk 00:12:23]} {[%emt 00:00:39]} Bxd5 {[%clk 00:11:21]} {[%emt 00:00:32]} 19.
exf6 {[%clk 00:11:01]} {[%emt 00:01:25]} Ne5 {[%clk 00:11:13]} {[%emt
00:00:10]} 20. Qg3 {[%clk 00:11:00]} {[%emt 00:00:05]} g6 {[%clk 00:07:39]}
{[%emt 00:03:38]} 21. cxd5 {[%clk 00:09:05]} {[%emt 00:01:58]} Nxd3 {[%clk
00:07:35]} {[%emt 00:00:06]} 22. Ne6 {[%clk 00:09:06]} {[%emt 00:00:02]} Qb8
{[%clk 00:06:38]} {[%emt 00:01:00]} 23. Rc3 {[%clk 00:09:03]} {[%emt 00:00:06]}
Nc5 {[%clk 00:06:24]} {[%emt 00:00:17]} 24. Nxf8 {[%clk 00:07:38]} {[%emt
00:01:29]} Rxf8 {[%clk 00:05:57]} {[%emt 00:00:30]} 25. Bxc5 {[%clk 00:07:21]}
{[%emt 00:00:19]} dxc5 {[%clk 00:05:22]} {[%emt 00:00:38]} 26. Qg5 {[%clk
00:07:22]} {[%emt 00:00:02]} 1-0

[ePGN "0.1;DGT LiveChess/2.2.3"]

[Event "new tournament description"]
[Site "France"]
[Date "2018.12.28"]
[Round "5.1"]
[White "GOZZOLI"]
[Black "LERCH"]
[Result "0-1"]
[TimeControl "15min+3sec"]
[WhiteElo "2582"]
[BlackElo "2420"]

1. d4 {[%clk 00:15:05]} Nf6 {[%clk 00:15:04]} {[%emt 00:00:02]} 2. Nf3 {[%clk
00:15:03]} {[%emt 00:00:04]} e6 {[%clk 00:15:00]} {[%emt 00:00:08]} 3. Bg5
{[%clk 00:15:00]} {[%emt 00:00:06]} h6 {[%clk 00:14:50]} {[%emt 00:00:13]} 4.
Bxf6 {[%clk 00:15:01]} {[%emt 00:00:01]} Qxf6 {[%clk 00:14:51]} {[%emt
00:00:02]} 5. e4 {[%clk 00:15:03]} Nc6 {[%clk 00:14:41]} {[%emt 00:00:14]} 6.
c3 {[%clk 00:15:03]} {[%emt 00:00:03]} e5 {[%clk 00:13:33]} {[%emt 00:01:11]} 7.
Bb5 {[%clk 00:12:43]} {[%emt 00:02:22]} exd4 {[%clk 00:12:56]} {[%emt
00:00:41]} 8. cxd4 {[%clk 00:12:25]} {[%emt 00:00:21]} Bb4+ {[%clk 00:12:56]}
{[%emt 00:00:03]} 9. Nc3 {[%clk 00:12:26]} {[%emt 00:00:01]} a6 {[%clk
00:11:57]} {[%emt 00:01:03]} 10. Bc4 {[%clk 00:11:18]} {[%emt 00:01:11]} d6
{[%clk 00:10:13]} {[%emt 00:01:47]} 11. O-O {[%clk 00:11:18]} {[%emt 00:00:03]}
Bxc3 {[%clk 00:09:57]} {[%emt 00:00:19]} 12. bxc3 {[%clk 00:11:19]} {[%emt
00:00:01]} Bg4 {[%clk 00:09:21]} {[%emt 00:00:39]} 13. Rb1 {[%clk 00:11:21]}
{[%emt 00:00:01]} Bxf3 {[%clk 00:09:09]} {[%emt 00:00:16]} 14. Qxf3 {[%clk
00:11:22]} {[%emt 00:00:01]} Qxf3 {[%clk 00:09:06]} {[%emt 00:00:06]} 15. gxf3
{[%clk 00:11:24]} {[%emt 00:00:01]} Nd8 {[%clk 00:07:48]} {[%emt 00:01:22]} 16.
f4 {[%clk 00:11:18]} {[%emt 00:00:08]} b5 {[%clk 00:07:49]} {[%emt 00:00:03]}
17. Bb3 {[%clk 00:11:11]} {[%emt 00:00:10]} Ne6 {[%clk 00:07:39]} {[%emt
00:00:13]} 18. f5 {[%clk 00:10:47]} {[%emt 00:00:28]} Nf4 {[%clk 00:07:41]}
{[%emt 00:00:01]} 19. Rfe1 {[%clk 00:10:49]} g6 {[%clk 00:06:47]} {[%emt
00:00:57]} 20. f6 {[%clk 00:10:38]} {[%emt 00:00:13]} O-O {[%clk 00:06:08]}
{[%emt 00:00:41]} 21. h4 {[%clk 00:09:57]} {[%emt 00:00:44]} c5 {[%clk
00:05:30]} {[%emt 00:00:42]} 22. Re3 {[%clk 00:09:46]} {[%emt 00:00:13]} Rfe8
{[%clk 00:04:45]} {[%emt 00:00:47]} 23. Kh2 {[%clk 00:09:37]} {[%emt 00:00:11]}
c4 {[%clk 00:04:24]} {[%emt 00:00:25]} 24. Bc2 {[%clk 00:05:23]} {[%emt
00:04:17]} Re6 {[%clk 00:04:24]} {[%emt 00:00:03]} 25. a4 {[%clk 00:05:23]}
{[%emt 00:00:03]} Rb8 {[%clk 00:04:17]} {[%emt 00:00:11]} 26. axb5 {[%clk
00:04:32]} {[%emt 00:00:54]} Rxb5 {[%clk 00:04:19]} {[%emt 00:00:01]} 27. Rf3
{[%clk 00:04:06]} {[%emt 00:00:29]} Nh5 {[%clk 00:03:46]} {[%emt 00:00:35]} 28.
Ra1 {[%clk 00:04:06]} {[%emt 00:00:03]} Rb2 {[%clk 00:03:26]} {[%emt 00:00:23]}
29. Bd1 {[%clk 00:04:08]} Nxf6 {[%clk 00:02:48]} {[%emt 00:00:42]} 30. Rxa6
{[%clk 00:04:06]} {[%emt 00:00:06]} Nxe4 {[%clk 00:02:48]} {[%emt 00:00:02]} 31.
Kg2 {[%clk 00:03:54]} {[%emt 00:00:15]} d5 {[%clk 00:02:35]} {[%emt 00:00:17]}
32. Ra8+ {[%clk 00:03:49]} {[%emt 00:00:08]} Kg7 {[%clk 00:02:37]} 33. Rd8
{[%clk 00:03:51]} {[%emt 00:00:01]} Rd2 {[%clk 00:02:02]} {[%emt 00:00:38]} 34.
Ba4 {[%clk 00:03:45]} {[%emt 00:00:09]} Rf6 {[%clk 00:01:58]} {[%emt 00:00:07]}
35. Rxf6 {[%clk 00:03:47]} {[%emt 00:00:01]} Kxf6 {[%clk 00:01:49]} {[%emt
00:00:12]} 36. Rxd5 {[%clk 00:03:44]} {[%emt 00:00:06]} Nxc3 {[%clk 00:01:35]}
{[%emt 00:00:17]} 37. Rd6+ {[%clk 00:03:46]} Kg7 {[%clk 00:01:30]} {[%emt
00:00:08]} 38. Bc6 {[%clk 00:03:47]} {[%emt 00:00:01]} Nd1 {[%clk 00:01:30]}
{[%emt 00:00:03]} 39. Ba4 {[%clk 00:03:23]} {[%emt 00:00:28]} Ne3+ {[%clk
00:01:17]} {[%emt 00:00:16]} 40. Kf3 {[%clk 00:03:10]} {[%emt 00:00:15]} Nf5
{[%clk 00:01:19]} {[%emt 00:00:01]} 41. Rd7 {[%clk 00:03:05]} {[%emt 00:00:09]}
Rxd4 {[%clk 00:00:59]} {[%emt 00:00:23]} 42. Rc7 {[%clk 00:02:58]} {[%emt
00:00:10]} Nxh4+ {[%clk 00:00:52]} {[%emt 00:00:10]} 43. Ke2 {[%clk 00:02:59]}
{[%emt 00:00:01]} Nf5 {[%clk 00:00:49]} {[%emt 00:00:05]} 44. Bc2 {[%clk
00:02:55]} {[%emt 00:00:08]} Nd6 {[%clk 00:00:35]} {[%emt 00:00:18]} 45. Ke3
{[%clk 00:02:54]} {[%emt 00:00:03]} Rd5 {[%clk 00:00:37]} {[%emt 00:00:01]} 46.
Ba4 {[%clk 00:02:35]} {[%emt 00:00:22]} Kf6 {[%clk 00:00:36]} {[%emt 00:00:04]}
47. Bc6 {[%clk 00:02:25]} {[%emt 00:00:13]} Rc5 {[%clk 00:00:26]} {[%emt
00:00:12]} 48. Kd4 {[%clk 00:02:27]} {[%emt 00:00:02]} Nb5+ {[%clk 00:00:28]}
{[%emt 00:00:01]} 49. Kxc5 {[%clk 00:02:26]} {[%emt 00:00:04]} Nxc7 {[%clk
00:00:30]} 50. Kxc4 {[%clk 00:02:29]} {[%emt 00:00:01]} Ke5 {[%clk 00:00:31]}
{[%emt 00:00:02]} 51. Kd3 {[%clk 00:02:31]} {[%emt 00:00:01]} Kf4 {[%clk
00:00:33]} {[%emt 00:00:01]} 52. Ke2 {[%clk 00:02:33]} f5 {[%clk 00:00:34]}
{[%emt 00:00:02]} 53. Kf1 {[%clk 00:02:34]} Ne6 {[%clk 00:00:35]} {[%emt
00:00:02]} 54. Kg2 {[%clk 00:02:36]} {[%emt 00:00:01]} g5 {[%clk 00:00:31]}
{[%emt 00:00:07]} 55. Be8 {[%clk 00:02:38]} g4 {[%clk 00:00:28]} {[%emt
00:00:06]} 56. Bf7 {[%clk 00:02:39]} {[%emt 00:00:02]} Nd4 {[%clk 00:00:28]}
{[%emt 00:00:03]} 57. Be8 {[%clk 00:02:39]} {[%emt 00:00:03]} Kg5 {[%clk
00:00:29]} {[%emt 00:00:02]} 58. Bf7 {[%clk 00:02:40]} {[%emt 00:00:03]} h5
{[%clk 00:00:30]} {[%emt 00:00:01]} 59. Be8 {[%clk 00:02:42]} h4 {[%clk
00:00:32]} {[%emt 00:00:02]} 60. Bf7 {[%clk 00:02:44]} {[%emt 00:00:01]} h3+
{[%clk 00:00:32]} {[%emt 00:00:03]} 61. Kh2 {[%clk 00:02:46]} Kf4 {[%clk
00:00:29]} {[%emt 00:00:06]} 62. Bd5 {[%clk 00:02:48]} {[%emt 00:00:02]} Kg5
{[%clk 00:00:18]} {[%emt 00:00:13]} 63. Bb7 {[%clk 00:02:48]} {[%emt 00:00:03]}
Kh4 {[%clk 00:00:20]} {[%emt 00:00:01]} 64. Ba8 {[%clk 00:02:41]} {[%emt
00:00:09]} f4 {[%clk 00:00:21]} {[%emt 00:00:03]} 65. Be4 {[%clk 00:02:42]}
{[%emt 00:00:02]} g3+ {[%clk 00:00:20]} {[%emt 00:00:04]} 66. fxg3+ {[%clk
00:02:44]} {[%emt 00:00:01]} fxg3+ {[%clk 00:00:23]} 67. Kh1 {[%clk 00:02:46]}
Ne2 {[%clk 00:00:21]} {[%emt 00:00:04]} 68. Bf3 {[%clk 00:02:47]} {[%emt
00:00:03]} Nf4 {[%clk 00:00:22]} {[%emt 00:00:02]} 69. Bb7 {[%clk 00:02:47]}
{[%emt 00:00:03]} Kg5 {[%clk 00:00:24]} 70. Bc8 {[%clk 00:02:46]} {[%emt
00:00:04]} g2+ {[%clk 00:00:14]} {[%emt 00:00:12]} 71. Kh2 {[%clk 00:02:48]}
{[%emt 00:00:01]} Ne2 {[%clk 00:00:16]} {[%emt 00:00:02]} 0-1

[Event "new tournament description"]
[Site "France"]
[Date "2018.12.28"]
[Round "5.2"]
[White "VATTER"]
[Black "GULIYEV"]
[Result "0-1"]
[TimeControl "15min+3sec"]
[WhiteElo "2354"]
[BlackElo "2563"]

1. e4 {[%clk 00:15:04]} {[%emt 00:00:01]} c5 {[%clk 00:15:06]} 2. Nf3 {[%clk
00:15:05]} {[%emt 00:00:03]} d6 {[%clk 00:15:08]} {[%emt 00:00:01]} 3. Bb5+
{[%clk 00:15:04]} {[%emt 00:00:03]} Nc6 {[%clk 00:15:04]} {[%emt 00:00:07]} 4.
O-O {[%clk 00:14:51]} {[%emt 00:00:15]} Bd7 {[%clk 00:15:05]} {[%emt 00:00:02]}
5. c3 {[%clk 00:14:50]} {[%emt 00:00:04]} Nf6 {[%clk 00:15:06]} {[%emt
00:00:02]} 6. Re1 {[%clk 00:14:52]} a6 {[%clk 00:15:08]} {[%emt 00:00:03]} 7.
Bxc6 {[%clk 00:14:12]} {[%emt 00:00:43]} Bxc6 {[%clk 00:15:09]} {[%emt
00:00:02]} 8. e5 {[%clk 00:14:13]} {[%emt 00:00:02]} dxe5 {[%clk 00:14:53]}
{[%emt 00:00:20]} 9. Nxe5 {[%clk 00:14:14]} {[%emt 00:00:02]} Rc8 {[%clk
00:14:53]} {[%emt 00:00:02]} 10. Nxc6 {[%clk 00:14:11]} {[%emt 00:00:06]} Rxc6
{[%clk 00:14:54]} {[%emt 00:00:02]} 11. Na3 {[%clk 00:14:03]} {[%emt 00:00:11]}
e6 {[%clk 00:13:19]} {[%emt 00:01:38]} 12. Nc2 {[%clk 00:13:43]} {[%emt
00:00:23]} Be7 {[%clk 00:11:42]} {[%emt 00:01:40]} 13. d4 {[%clk 00:13:44]}
{[%emt 00:00:02]} O-O {[%clk 00:11:43]} {[%emt 00:00:02]} 14. Bg5 {[%clk
00:13:33]} {[%emt 00:00:13]} h6 {[%clk 00:11:24]} {[%emt 00:00:22]} 15. Bxf6
{[%clk 00:13:27]} {[%emt 00:00:08]} Bxf6 {[%clk 00:11:26]} {[%emt 00:00:01]} 16.
dxc5 {[%clk 00:13:24]} {[%emt 00:00:06]} Rxc5 {[%clk 00:11:28]} {[%emt
00:00:02]} 17. Ne3 {[%clk 00:13:15]} {[%emt 00:00:12]} Qc7 {[%clk 00:11:14]}
{[%emt 00:00:17]} 18. Qf3 {[%clk 00:13:01]} {[%emt 00:00:16]} b5 {[%clk
00:11:12]} {[%emt 00:00:06]} 19. Rad1 {[%clk 00:12:48]} {[%emt 00:00:15]} a5
{[%clk 00:11:08]} {[%emt 00:00:07]} 20. Rd2 {[%clk 00:12:19]} {[%emt 00:00:32]}
b4 {[%clk 00:11:09]} {[%emt 00:00:03]} 21. cxb4 {[%clk 00:12:20]} {[%emt
00:00:02]} axb4 {[%clk 00:11:10]} {[%emt 00:00:02]} 22. Red1 {[%clk 00:12:19]}
{[%emt 00:00:04]} Qa5 {[%clk 00:10:52]} {[%emt 00:00:21]} 23. b3 {[%clk
00:12:19]} {[%emt 00:00:04]} Bc3 {[%clk 00:10:12]} {[%emt 00:00:43]} 24. Nc4
{[%clk 00:11:32]} {[%emt 00:00:50]} Qa8 {[%clk 00:07:32]} {[%emt 00:02:43]} 25.
Qxa8 {[%clk 00:11:32]} {[%emt 00:00:03]} Rxa8 {[%clk 00:07:34]} {[%emt
00:00:01]} 26. Rd8+ {[%clk 00:11:34]} {[%emt 00:00:01]} Rxd8 {[%clk 00:07:36]}
{[%emt 00:00:01]} 27. Rxd8+ {[%clk 00:11:36]} Kh7 {[%clk 00:07:38]} {[%emt
00:00:01]} 28. Kf1 {[%clk 00:11:38]} Rc7 {[%clk 00:07:29]} {[%emt 00:00:13]} 29.
Ra8 {[%clk 00:10:45]} {[%emt 00:00:56]} g5 {[%clk 00:07:30]} {[%emt 00:00:01]}
30. Ke2 {[%clk 00:10:46]} {[%emt 00:00:02]} h5 {[%clk 00:07:31]} {[%emt
00:00:02]} 31. h3 {[%clk 00:10:39]} {[%emt 00:00:09]} h4 {[%clk 00:07:31]}
{[%emt 00:00:04]} 32. Ra6 {[%clk 00:10:35]} {[%emt 00:00:07]} Kg6 {[%clk
00:07:27]} {[%emt 00:00:07]} 33. f3 {[%clk 00:10:36]} {[%emt 00:00:02]} Kf5
{[%clk 00:07:14]} {[%emt 00:00:16]} 34. Ke3 {[%clk 00:10:17]} {[%emt 00:00:21]}
Rd7 {[%clk 00:07:02]} {[%emt 00:00:15]} 35. Nd6+ {[%clk 00:10:08]} {[%emt
00:00:13]} Kg6 {[%clk 00:07:03]} {[%emt 00:00:02]} 36. Ne4 {[%clk 00:09:32]}
{[%emt 00:00:39]} Be5 {[%clk 00:06:54]} {[%emt 00:00:12]} 37. Ra4 {[%clk
00:09:09]} {[%emt 00:00:26]} Bf4+ {[%clk 00:06:47]} {[%emt 00:00:10]} 38. Ke2
{[%clk 00:08:41]} {[%emt 00:00:31]} f5 {[%clk 00:06:46]} {[%emt 00:00:04]} 39.
Nc5 {[%clk 00:08:40]} {[%emt 00:00:04]} Rd2+ {[%clk 00:06:48]} {[%emt
00:00:01]} 40. Kf1 {[%clk 00:08:33]} {[%emt 00:00:10]} Kf6 {[%clk 00:04:58]}
{[%emt 00:01:53]} 41. Rxb4 {[%clk 00:07:45]} {[%emt 00:00:52]} Bg3 {[%clk
00:04:46]} {[%emt 00:00:15]} 42. Rb6 {[%clk 00:07:13]} {[%emt 00:00:35]} Rf2+
{[%clk 00:04:45]} {[%emt 00:00:05]} 43. Kg1 {[%clk 00:07:07]} {[%emt 00:00:08]}
Re2 {[%clk 00:04:45]} {[%emt 00:00:02]} 44. Nd3 {[%clk 00:07:05]} {[%emt
00:00:05]} Re3 {[%clk 00:04:43]} {[%emt 00:00:04]} 0-1

[ePGN "0.1;DGT LiveChess/2.2.3"]